fUST/lending_fUST_20250121
["ID","MTS","AMOUNT","RATE_DAILY","PERIOD"]
[349757565,1737414649498,-777.13,0.00022054,3]
[349757567,1737414649507,-500.0,0.00022054,3]
[349757569,1737414649518,-152.020225,0.00022054,7]
[349757571,1737414649528,-500.0,0.00022054,3]
[349757573,1737414649537,-500.0,0.00022054,3]
[349757575,1737414649546,-500.0,0.00022054,3]
[349757577,1737414649555,-500.0,0.00022054,3]
[349757579,1737414649565,-500.0,0.00022054,3]
[349757581,1737414649574,-554.33,0.00022054,3]
[349757583,1737414649583,-495.47648648,0.00022054,3]
[349757585,1737414649593,-570.89,0.00022054,3]
[349757587,1737414649603,-500.0,0.00022054,3]
[349757589,1737414649613,-749.57,0.00022054,3]
[349757591,1737414649622,-500.0,0.00022054,3]
[349757593,1737414649631,-1311.25,0.00022054,3]
[349757595,1737414649640,-540.84017557,0.00022054,3]
[349757597,1737414649649,-781.81,0.00022054,3]
[349757599,1737414649659,-500.0,0.00022054,3]
[349757601,1737414649668,-500.0,0.00022054,3]
[349757603,1737414649677,-500.0,0.00022054,3]
[349757605,1737414649686,-500.0,0.00022054,3]
[349757607,1737414649696,-500.0,0.00022054,3]
[349757609,1737414649705,-500.0,0.00022054,3]
[349757625,1737414649838,-500.0,0.00022054,3]
[349757627,1737414649848,-500.0,0.00022054,3]
[349757629,1737414649857,-500.0,0.00022054,3]
[349757631,1737414649868,-500.0,0.00022054,3]
[349757633,1737414649877,-549.28557075,0.00022054,3]
[349757635,1737414649887,-500.0,0.00022054,3]
[349757637,1737414649895,-500.0,0.00022054,3]
[349757639,1737414649904,-151.0,0.00022054,7]
[349757641,1737414649914,-500.0,0.00022054,3]
[349757643,1737414649923,-948.49,0.00022054,3]
[349757645,1737414649933,-566.21,0.00022054,3]
[349757647,1737414649942,-500.0,0.00022054,3]
[349757649,1737414649951,-151.0,0.00022054,7]
[349757651,1737414649961,-151.0,0.00022054,7]
[349757653,1737414649971,-151.0,0.00022054,7]
[349757655,1737414649980,-500.0,0.00022054,3]
[349757657,1737414649989,-500.0,0.00022054,3]
[349757659,1737414649999,-500.0,0.00022054,3]
[349757661,1737414650008,-514.06068051,0.00022054,3]
[349757663,1737414650018,-500.0,0.00022054,3]
[349757665,1737414650027,-11447.96,0.00022054,3]
[349757667,1737414650037,-500.0,0.00022054,3]
[349757669,1737414650046,-500.0,0.00022054,3]
[349757671,1737414650055,-500.0,0.00022054,3]
[349757673,1737414650065,-500.0,0.00022054,3]
[349757675,1737414650074,-5828.52,0.00022054,3]
[349757677,1737414650083,-713.65,0.00022054,3]
[349757679,1737414650093,-500.0,0.00022054,3]
[349757681,1737414650102,-509.03,0.00022054,3]
[349757683,1737414650112,-500.0,0.00022054,3]
[349757686,1737414650125,-500.0,0.00022054,3]
[349757688,1737414650136,-169.46105,0.00022054,7]
[349757690,1737414650145,-500.0,0.00022054,3]
[349757692,1737414650154,-169.46105,0.00022054,7]
[349757694,1737414650163,-2943.34,0.00022054,3]
[349757696,1737414650173,-500.0,0.00022054,3]
[349757698,1737414650182,-500.0,0.00022054,3]
[349757700,1737414650191,-151.0,0.00022054,7]
[349757702,1737414650200,-1302.65,0.00022054,3]
[349757704,1737414650209,-500.0,0.00022054,3]
[349757706,1737414650218,-500.0,0.00022054,3]
[349757708,1737414650228,-500.0,0.00022054,3]
[349757710,1737414650237,-500.0,0.00022054,3]
[349757712,1737414650246,-500.0,0.00022054,3]
[349757714,1737414650255,-500.0,0.00022054,3]
[349757716,1737414650264,-500.0,0.00022054,3]
[349757718,1737414650273,-500.0,0.00022054,3]
[349757720,1737414650283,-500.0,0.00022054,3]
[349757722,1737414650292,-1949.79,0.00022054,3]
[349757723,1737414650301,-5127.38,0.00022054,3]
[349757725,1737414650311,-1998.04,0.00022054,2]
[349757727,1737414650320,-151.0,0.00022054,7]
[349757729,1737414650329,-748.45,0.00022054,3]
[349757731,1737414650339,-500.0,0.00022054,3]
[349757733,1737414650348,-503.88895537,0.00022054,3]
[349757735,1737414650358,-1277.89,0.00022054,3]
[349757737,1737414650369,-3675.22,0.00022054,3]
[349757739,1737414650378,-500.0,0.00022054,3]
[349757741,1737414650387,-500.0,0.00022054,3]
[349757743,1737414650397,-500.0,0.00022054,3]
[349757745,1737414650406,-2065.42,0.00022054,3]
[349757747,1737414650416,-500.0,0.00022054,3]
[349757749,1737414650425,-500.0,0.00022054,3]
[349757751,1737414650434,-500.0,0.00022054,3]
[349757753,1737414650444,-500.0,0.00022054,3]
[349757755,1737414650453,-1707.98,0.00022054,3]
[349757757,1737414650463,-500.0,0.00022054,3]
[349757759,1737414650472,-500.0,0.00022054,3]
[349757761,1737414650482,-500.0,0.00022054,3]
[349757763,1737414650491,-500.0,0.00022054,3]
[349757765,1737414650502,-500.0,0.00022054,3]
[349757767,1737414650511,-500.0,0.00022054,3]
[349757769,1737414650523,-500.0,0.00022054,3]
[349757771,1737414650533,-40288.68,0.00022054,3]
[349757774,1737414650542,-500.0,0.00022054,3]
[349757776,1737414650552,-500.0,0.00022054,3]
[349757778,1737414650562,-151.0,0.00022054,7]
[349757780,1737414650572,-500.0,0.00022054,3]
[349757782,1737414650581,-873.52,0.00022054,3]
[349757784,1737414650591,-607.84,0.00022054,3]
[349757786,1737414650602,-5241.66,0.00022054,3]
[349757788,1737414650612,-500.0,0.00022054,3]
[349757790,1737414650628,-500.0,0.00022054,3]
[349757792,1737414650638,-500.0,0.00022054,3]
[349757794,1737414650648,-500.0,0.00022054,3]
[349757796,1737414650657,-500.0,0.00022054,3]
[349757798,1737414650668,-500.0,0.00022054,3]
[349757800,1737414650677,-500.0,0.00022054,3]
[349757802,1737414650687,-500.0,0.00022054,3]
[349757804,1737414650697,-500.0,0.00022054,3]
[349757806,1737414650706,-500.0,0.00022054,3]
[349757808,1737414650715,-1803.63,0.00022054,3]
[349757810,1737414650725,-11401.12,0.00022054,3]
[349757812,1737414650734,-1248.83,0.00022054,3]
[349757814,1737414650743,-410.06648433,0.00022054,3]
[349757816,1737414650753,-500.0,0.00022054,3]
[349757818,1737414650762,-500.0,0.00022054,3]
[349757820,1737414650771,-500.0,0.00022054,3]
[349757822,1737414650780,-500.0,0.00022054,3]
[349757824,1737414650789,-151.0,0.00022054,7]
[349757826,1737414650798,-1285.82,0.00022054,3]
[349757828,1737414650807,-1704.31,0.00022054,3]
[349757830,1737414650816,-500.0,0.00022054,3]
[349757832,1737414650825,-500.0,0.00022054,3]
[349757834,1737414650835,-500.0,0.00022054,3]
[349757836,1737414650844,-500.0,0.00022054,3]
[349757838,1737414650853,-500.0,0.00022054,3]
[349757841,1737414650867,-500.0,0.00022054,3]
[349757844,1737414650884,-500.0,0.00022054,3]
[349757847,1737414650900,-500.0,0.00022054,3]
[349757849,1737414650913,-773.36,0.00022054,3]
[349757851,1737414650928,-500.0,0.00022054,3]
[349757854,1737414650941,-500.0,0.00022054,3]
[349757857,1737414650955,-2914.46,0.00022054,3]
[349757859,1737414650970,-500.0,0.00022054,3]
[349757862,1737414650984,-3894.88,0.00022054,3]
[349757864,1737414650999,-500.0,0.00022054,3]
[349757867,1737414651011,-500.0,0.00022054,3]
[349757868,1737414651024,-500.0,0.00022054,3]
[349757869,1737414651036,-151.0,0.00022054,7]
[349757870,1737414651051,-500.0,0.00022054,3]
[349757871,1737414651064,-500.0,0.00022054,3]
[349757872,1737414651076,-620.36,0.00022054,3]
[349757873,1737414651086,-151.0,0.00022054,7]
[349757874,1737414651099,-510.02,0.00022054,3]
[349757875,1737414651112,-500.0,0.00022054,3]
[349757876,1737414651128,-151.0,0.00022054,7]
[349757878,1737414651141,-1681.07,0.00022054,3]
[349757881,1737414651156,-500.0,0.00022054,3]
[349757883,1737414651171,-500.0,0.00022054,3]
[349757886,1737414651185,-500.0,0.00022054,3]
[349757888,1737414651196,-500.0,0.00022054,3]
[349757890,1737414651206,-819.98,0.00022054,3]
[349757892,1737414651218,-10387.97,0.00022054,3]
[349757895,1737414651233,-500.0,0.00022054,3]
[349757897,1737414651246,-500.0,0.00022054,3]
[349757900,1737414651257,-500.0,0.00022054,3]
[349757902,1737414651268,-500.0,0.00022054,3]
[349757904,1737414651282,-500.0,0.00022054,3]
[349757907,1737414651293,-500.0,0.00022054,3]
[349757909,1737414651304,-798.89,0.00022054,3]
[349757911,1737414651316,-1385.33,0.00022054,3]
[349757913,1737414651327,-500.0,0.00022054,3]
[349757916,1737414651340,-500.0,0.00022054,3]
[349757918,1737414651352,-500.0,0.00022054,3]
[349757921,1737414651365,-3818.96,0.00022054,3]
[349757923,1737414651376,-500.0,0.00022054,3]
[349757925,1737414651388,-500.0,0.00022054,3]
[349757927,1737414651401,-151.0,0.00022054,7]
[349757930,1737414651413,-500.0,0.00022054,3]
[349757932,1737414651425,-894.67,0.00022054,3]
[349757935,1737414651439,-3926.78,0.00022054,3]
[349757937,1737414651451,-366.66097143,0.00022054,3]
[349757939,1737414651463,-1349.85,0.00022054,3]
[349757942,1737414651475,-500.0,0.00022054,3]
[349757944,1737414651489,-500.0,0.00022054,3]
[349757946,1737414651501,-500.0,0.00022054,3]
[349757949,1737414651514,-500.0,0.00022054,3]
[349757951,1737414651528,-500.0,0.00022054,3]
[349757953,1737414651540,-500.0,0.00022054,3]
[349757956,1737414651552,-661.84,0.00022054,3]
[349757958,1737414651566,-500.0,0.00022054,3]
[349757960,1737414651578,-500.0,0.00022054,3]
[349757963,1737414651590,-1580.54,0.00022054,3]
[349757965,1737414651604,-571.41,0.00022054,3]
[349757968,1737414651618,-342.940949,0.00022054,3]
[349757970,1737414651630,-500.0,0.00022054,3]
[349757972,1737414651642,-151.0,0.00022054,7]
[349757975,1737414651655,-500.0,0.00022054,3]
[349757977,1737414651667,-500.0,0.00022054,3]
[349757979,1737414651679,-563.34,0.00022054,3]
[349757982,1737414651692,-500.0,0.00022054,3]
[349757984,1737414651704,-500.0,0.00022054,3]
[349757987,1737414651717,-500.0,0.00022054,3]
[349757989,1737414651729,-500.0,0.00022054,3]
[349757991,1737414651741,-500.0,0.00022054,3]
[349757994,1737414651753,-500.57,0.00022054,3]
[349757996,1737414651765,-151.0,0.00022054,7]
[349757998,1737414651777,-500.0,0.00022054,3]
[349758001,1737414651790,-500.0,0.00022054,3]
[349758003,1737414651802,-500.0,0.00022054,3]
[349758005,1737414651815,-1977.31,0.00022054,3]
[349758008,1737414651827,-1043.85,0.00022054,3]
[349758010,1737414651840,-500.0,0.00022054,3]
[349758013,1737414651852,-500.0,0.00022054,3]
[349758015,1737414651865,-1481.94,0.00022054,3]
[349758017,1737414651878,-500.0,0.00022054,3]
[349758020,1737414651891,-500.0,0.00022054,3]
[349758022,1737414651904,-500.0,0.00022054,3]
[349758025,1737414651916,-500.0,0.00022054,3]
[349758027,1737414651928,-500.0,0.00022054,3]
[349758029,1737414651940,-676.99,0.00022054,3]
[349758032,1737414651952,-500.0,0.00022054,3]
[349758034,1737414651964,-3303.56,0.00022054,3]
[349758036,1737414651976,-603.85,0.00022054,3]
[349758039,1737414651988,-500.0,0.00022054,3]
[349758041,1737414652001,-151.0,0.00022054,7]
[349758043,1737414652013,-570.65,0.00022054,3]
[349758045,1737414652023,-500.0,0.00022054,3]
[349758047,1737414652032,-616.56569802,0.00022054,3]
[349758049,1737414652041,-500.0,0.00022054,3]
[349758051,1737414652051,-500.0,0.00022054,3]
[349758053,1737414652061,-566.56,0.00022054,3]
[349758055,1737414652071,-500.0,0.00022073,2]
[349758058,1737414652080,-500.0,0.00022073,2]
[349758060,1737414652089,-151.0,0.00022073,7]
[349758062,1737414652099,-300.817269,0.00022073,7]
[349758064,1737414652108,-151.0,0.00022073,7]
[349758066,1737414652118,-152.961963,0.00022073,7]
[349758092,1737414652354,-1323.54754125,0.00022107,3]
[349758095,1737414652377,-151.0,0.00022147,7]
[349758098,1737414652392,-151.0,0.00022147,7]
[349758100,1737414652402,-151.0,0.00022147,7]
[349758102,1737414652412,-363.30683655,0.00022173,2]
[349758104,1737414652422,-500.0,0.00022191,3]
[349758106,1737414652431,-500.0,0.00022191,3]
[349758108,1737414652441,-500.0,0.00022191,3]
[349758110,1737414652451,-500.0,0.00022191,3]
[349758112,1737414652460,-591.58,0.00022191,3]
[349758114,1737414652470,-500.0,0.00022191,3]
[349758116,1737414652479,-500.0,0.00022191,3]
[349758118,1737414652489,-502.69757913,0.00022191,3]
[349758120,1737414652498,-500.0,0.00022191,3]
[349758122,1737414652507,-633.39022677,0.00022191,3]
[349758124,1737414652517,-265.05960498,0.00022191,3]
[349758126,1737414652530,-500.0,0.00022191,3]
[349758128,1737414652540,-500.0,0.00022191,3]
[349758130,1737414652549,-510.53134449,0.00022191,3]
[349758132,1737414652558,-500.0,0.00022191,3]
[349758134,1737414652568,-500.0,0.00022191,3]
[349758136,1737414652577,-500.0,0.00022191,3]
[349758138,1737414652587,-500.0,0.00022191,3]
[349758140,1737414652596,-500.0,0.00022191,3]
[349758142,1737414652605,-500.0,0.00022191,3]
[349758144,1737414652615,-500.0,0.00022191,3]
[349758146,1737414652625,-500.0,0.00022191,3]
[349758148,1737414652634,-500.0,0.00022191,3]
[349758150,1737414652644,-500.0,0.00022191,3]
[349758152,1737414652653,-500.0,0.00022191,3]
[349758155,1737414652663,-781.31,0.00022191,3]
[349758157,1737414652672,-151.0,0.00022191,7]
[349758159,1737414652681,-500.0,0.00022191,3]
[349758161,1737414652690,-500.0,0.00022191,3]
[349758163,1737414652701,-394.34008367,0.00022191,3]
[349758165,1737414652710,-500.0,0.00022191,3]
[349758167,1737414652720,-500.0,0.00022191,3]
[349758169,1737414652729,-500.0,0.00022191,3]
[349758171,1737414652738,-500.0,0.00022191,3]
[349758173,1737414652748,-500.0,0.00022191,3]
[349758175,1737414652757,-440.11186847,0.00022191,3]
[349758177,1737414652767,-500.0,0.00022191,3]
[349758179,1737414652776,-500.0,0.00022191,3]
[349758181,1737414652786,-500.0,0.00022191,3]
[349758183,1737414652795,-594.77,0.00022191,3]
[349758185,1737414652804,-500.0,0.00022191,3]
[349758187,1737414652815,-500.0,0.00022191,3]
[349758189,1737414652825,-500.0,0.00022191,3]
[349758191,1737414652834,-500.0,0.00022191,3]
[349758193,1737414652844,-500.0,0.00022191,3]
[349758195,1737414652853,-500.0,0.00022191,3]
[349758197,1737414652862,-500.0,0.00022191,3]
[349758199,1737414652873,-500.0,0.00022191,3]
[349758201,1737414652882,-500.0,0.00022191,3]
[349758203,1737414652891,-963.08,0.00022191,3]
[349758205,1737414652901,-1013.38,0.00022191,3]
[349758207,1737414652910,-500.0,0.00022191,3]
[349758210,1737414652920,-500.0,0.00022191,3]
[349758212,1737414652929,-500.0,0.00022191,3]
[349758214,1737414652938,-565.90550694,0.00022191,3]
[349758216,1737414652947,-500.0,0.00022191,3]
[349758218,1737414652957,-500.0,0.00022191,3]
[349758220,1737414652966,-500.0,0.00022191,3]
[349758222,1737414652976,-500.0,0.00022191,3]
[349758224,1737414652985,-500.0,0.00022191,3]
[349758226,1737414652994,-151.0,0.00022191,7]
[349758228,1737414653004,-1030.16,0.00022191,3]
[349758230,1737414653013,-436.62868547,0.00022191,3]
[349758232,1737414653022,-500.0,0.00022191,3]
[349758234,1737414653031,-151.0,0.00022191,7]
[349758236,1737414653041,-500.0,0.00022191,3]
[349758238,1737414653050,-500.0,0.00022191,3]
[349758240,1737414653060,-517.96,0.00022191,3]
[349758242,1737414653069,-500.0,0.00022191,3]
[349758244,1737414653078,-572.3105872,0.00022191,3]
[349758246,1737414653087,-500.0,0.00022191,3]
[349758248,1737414653096,-500.0,0.00022191,3]
[349758250,1737414653105,-1303.34,0.00022191,3]
[349758252,1737414653115,-500.0,0.00022191,3]
[349758254,1737414653126,-510.83626275,0.00022191,3]
[349758256,1737414653137,-500.0,0.00022191,3]
[349758258,1737414653146,-751.4,0.00022191,3]
[349758260,1737414653156,-500.0,0.00022191,3]
[349758262,1737414653165,-500.0,0.00022191,3]
[349758264,1737414653175,-500.0,0.00022191,3]
[349758266,1737414653184,-500.0,0.00022191,3]
[349758268,1737414653194,-500.0,0.00022191,3]
[349758270,1737414653203,-500.0,0.00022191,3]
[349758272,1737414653212,-1102.9,0.00022191,3]
[349758274,1737414653222,-1630.19,0.00022191,3]
[349758276,1737414653231,-639.30018871,0.00022191,3]
[349758278,1737414653241,-500.0,0.00022191,3]
[349758280,1737414653250,-500.0,0.00022191,3]
[349758282,1737414653259,-500.0,0.00022191,3]
[349758284,1737414653269,-500.0,0.00022191,3]
[349758286,1737414653278,-455.70709484,0.00022191,3]
[349758288,1737414653287,-500.0,0.00022191,3]
[349758290,1737414653296,-500.0,0.00022191,3]
[349758293,1737414653305,-500.0,0.00022191,3]
[349758295,1737414653315,-500.0,0.00022191,3]
[349758297,1737414653325,-500.0,0.00022191,3]
[349758299,1737414653336,-500.0,0.00022191,3]
[349758301,1737414653345,-1801.03,0.00022191,3]
[349758302,1737414653354,-500.0,0.00022191,3]
[349758303,1737414653363,-500.0,0.00022191,3]
[349758304,1737414653375,-500.0,0.00022191,3]
[349758305,1737414653384,-500.0,0.00022191,3]
[349758306,1737414653393,-500.0,0.00022191,3]
[349758307,1737414653403,-500.0,0.00022191,3]
[349758308,1737414653412,-500.0,0.00022191,3]
[349758309,1737414653421,-500.0,0.00022191,3]
[349758310,1737414653429,-500.0,0.00022191,3]
[349758311,1737414653439,-500.0,0.00022191,3]
[349758312,1737414653447,-500.0,0.00022191,3]
[349758313,1737414653457,-786.43,0.00022191,3]
[349758314,1737414653466,-500.0,0.00022191,3]
[349758316,1737414653475,-500.0,0.00022191,3]
[349758318,1737414653485,-500.0,0.00022191,3]
[349758320,1737414653494,-500.0,0.00022191,3]
[349758322,1737414653503,-811.46,0.00022191,3]
[349758324,1737414653517,-500.00000001,0.00022191,3]
[349758326,1737414653530,-500.0,0.00022191,3]
[349758328,1737414653539,-777.13,0.00022191,3]
[349758330,1737414653548,-500.0,0.00022191,3]
[349758333,1737414653559,-500.0,0.00022191,3]
[349758335,1737414653568,-500.0,0.00022191,3]
[349758337,1737414653577,-500.0,0.00022191,3]
[349758338,1737414653586,-500.0,0.00022191,3]
[349758340,1737414653597,-500.0,0.00022191,3]
[349758343,1737414653607,-554.33,0.00022191,3]
[349758344,1737414653616,-570.89,0.00022191,3]
[349758346,1737414653630,-500.0,0.00022191,3]
[349758349,1737414653640,-749.57,0.00022191,3]
[349758351,1737414653653,-1311.25,0.00022191,3]
[349758353,1737414653661,-781.81,0.00022191,3]
[349758355,1737414653670,-500.0,0.00022191,3]
[349758357,1737414653679,-500.0,0.00022191,3]
[349758359,1737414653689,-363.49508087,0.00022191,3]
[349758361,1737414653698,-500.0,0.00022191,3]
[349758363,1737414653707,-500.0,0.00022191,3]
[349758365,1737414653717,-500.0,0.00022191,3]
[349758367,1737414653727,-502.82979385,0.00022191,3]
[349758369,1737414653736,-500.0,0.00022191,3]
[349758371,1737414653745,-500.0,0.00022191,3]
[349758373,1737414653755,-500.0,0.00022191,3]
[349758375,1737414653764,-500.0,0.00022191,3]
[349758377,1737414653773,-500.0,0.00022191,3]
[349758379,1737414653783,-500.0,0.00022191,3]
[349758381,1737414653792,-948.49,0.00022191,3]
[349758383,1737414653801,-566.21,0.00022191,3]
[349758385,1737414653810,-500.0,0.00022191,3]
[349758387,1737414653819,-152.999238,0.00022191,7]
[349758389,1737414653829,-151.0,0.00022191,7]
[349758391,1737414653838,-500.0,0.00022191,3]
[349758393,1737414653847,-500.0,0.00022191,3]
[349758395,1737414653856,-500.0,0.00022191,3]
[349758397,1737414653865,-500.0,0.00022191,3]
[349758399,1737414653876,-11447.96,0.00022191,3]
[349758401,1737414653885,-502.98263348,0.00022191,3]
[349758403,1737414653895,-500.0,0.00022191,3]
[349758405,1737414653904,-500.0,0.00022191,3]
[349758407,1737414653913,-500.0,0.00022191,3]
[349758409,1737414653923,-5828.52,0.00022191,3]
[349758411,1737414653933,-713.65,0.00022191,3]
[349758413,1737414653942,-500.0,0.00022191,3]
[349758415,1737414653951,-509.03,0.00022191,3]
[349758417,1737414653960,-500.0,0.00022191,3]
[349758419,1737414653969,-500.0,0.00022191,3]
[349758421,1737414653979,-169.46105,0.00022191,7]
[349758423,1737414653989,-169.46105,0.00022191,7]
[349758425,1737414653998,-510.32673163,0.00022191,3]
[349758427,1737414654008,-169.46105,0.00022191,7]
[349758429,1737414654017,-169.46105,0.00022191,7]
[349758431,1737414654027,-2943.34,0.00022191,3]
[349758433,1737414654036,-500.0,0.00022191,3]
[349758435,1737414654046,-500.0,0.00022191,3]
[349758437,1737414654055,-1302.65,0.00022191,3]
[349758439,1737414654064,-500.0,0.00022191,3]
[349758441,1737414654074,-500.0,0.00022191,3]
[349758443,1737414654084,-500.0,0.00022191,3]
[349758445,1737414654093,-500.0,0.00022191,3]
[349758447,1737414654102,-500.0,0.00022191,3]
[349758449,1737414654112,-500.0,0.00022191,3]
[349758452,1737414654123,-500.0,0.00022191,3]
[349758454,1737414654135,-500.0,0.00022191,3]
[349758456,1737414654145,-1949.79,0.00022191,3]
[349758458,1737414654154,-5127.38,0.00022191,3]
[349758460,1737414654163,-1998.04,0.00022191,2]
[349758462,1737414654173,-151.0,0.00022191,7]
[349758464,1737414654182,-500.0,0.00022191,3]
[349758466,1737414654191,-748.45,0.00022191,3]
[349758468,1737414654200,-1277.89,0.00022191,3]
[349758470,1737414654209,-3675.22,0.00022191,3]
[349758472,1737414654218,-500.0,0.00022191,3]
[349758474,1737414654227,-500.0,0.00022191,3]
[349758476,1737414654237,-500.0,0.00022191,3]
[349758478,1737414654246,-2065.42,0.00022191,3]
[349758480,1737414654255,-500.0,0.00022191,3]
[349758482,1737414654264,-500.0,0.00022191,3]
[349758484,1737414654273,-500.0,0.00022191,3]
[349758486,1737414654282,-500.0,0.00022191,3]
[349758488,1737414654292,-1707.98,0.00022191,3]
[349758490,1737414654301,-500.0,0.00022191,3]
[349758492,1737414654310,-500.0,0.00022191,3]
[349758494,1737414654319,-500.0,0.00022191,3]
[349758496,1737414654329,-500.0,0.00022191,3]
[349758498,1737414654338,-500.0,0.00022191,3]
[349758500,1737414654347,-500.0,0.00022191,3]
[349758502,1737414654357,-40288.68,0.00022191,3]
[349758504,1737414654366,-500.0,0.00022191,3]
[349758506,1737414654376,-500.0,0.00022191,3]
[349758508,1737414654385,-500.0,0.00022191,3]
[349758510,1737414654394,-873.52,0.00022191,3]
[349758512,1737414654404,-607.84,0.00022191,3]
[349758514,1737414654413,-1627.56481814,0.00022191,3]
[349758534,1737414654591,-1084.41099492,0.00022191,3]
[349758538,1737414654619,-626.48507443,0.00022191,3]
[349759915,1737415203165,1000.0,0.00019,30]
[349759917,1737415220351,165.125307,0.00013973,2]
[349759918,1737415294187,194.2489996,0.00019924,2]
[349759926,1737415432788,166.8917491,0.0001965,2]
[349760023,1737415700753,818.85048107,0.000189,2]
[349760024,1737415717381,354.5070759,0.0002,2]
[349760079,1737415838017,-218.943791,0.00020116,2]
[349760081,1737415838026,-500.0,0.00020432,2]
[349760083,1737415838036,-300.0,0.00020803,2]
[349760085,1737415838045,-18591.58202222,0.00020804,2]
[349760088,1737415838071,-266.00902665,0.00020804,2]
[349760127,1737415838422,-6042.40895113,0.00020804,2]
[349760129,1737415838432,-175.897,0.00020804,2]
[349760131,1737415838441,-4408.362297,0.00021,2]
[349760133,1737415838452,-508.737,0.0002121,2]
[349760134,1737415838461,-161.273809,0.00021297,2]
[349760135,1737415838470,-488.114,0.00021452,2]
[349760136,1737415838479,-1991.0,0.00021452,2]
[349760137,1737415838488,-2307.0,0.00021452,2]
[349760138,1737415838498,-154.88,0.00021817,2]
[349760139,1737415838512,-500.0,0.00021916,2]
[349760140,1737415838522,-458.16734837,0.00021916,2]
[349760141,1737415838531,-500.0,0.00021916,2]
[349760142,1737415838540,-500.0,0.00021916,2]
[349760143,1737415838550,-500.0,0.00021916,2]
[349760144,1737415838559,-500.0,0.00021916,2]
[349760145,1737415838568,-233.63884441,0.00021916,2]
[349760146,1737415838578,-621.54156204,0.00021916,2]
[349760147,1737415838588,-500.0,0.00021917,3]
[349760148,1737415838598,-493.90380827,0.00021917,3]
[349760149,1737415838608,-321.03659747,0.00021917,3]
[349760150,1737415838617,-501.82662371,0.00021917,3]
[349760151,1737415838627,-542.46709313,0.00021917,3]
[349760153,1737415838637,-198.25231518,0.00021917,3]
[349760155,1737415838647,-501.55696237,0.00021917,3]
[349760157,1737415838657,-500.0,0.00021917,3]
[349760159,1737415838667,-647.31891659,0.00021917,3]
[349760161,1737415838676,-500.0,0.00021917,3]
[349760163,1737415838686,-500.0,0.00021917,3]
[349760165,1737415838696,-500.0,0.00021917,3]
[349760167,1737415838706,-500.0,0.00021917,3]
[349760169,1737415838715,-501.67030172,0.00021917,3]
[349760171,1737415838724,-500.0,0.00021917,3]
[349760174,1737415838734,-522.88089945,0.00021917,3]
[349760176,1737415838744,-500.0,0.00021917,3]
[349760178,1737415838753,-500.0,0.00021917,3]
[349760179,1737415838762,-500.0,0.00021917,3]
[349760181,1737415838772,-549.19365797,0.00021917,3]
[349760184,1737415838781,-512.6944992,0.00021917,3]
[349760186,1737415838791,-500.0,0.00021917,3]
[349760188,1737415838801,-531.3994437,0.00021917,3]